bitfinex/quotes_BTCUSD_20251116
["timestamp","ask_amount","ask_price","bid_price","bid_amount"]
[1763287724731,0.39494767,96490.0,96489.0,0.00029674]
[1763287724937,0.60222303,96490.0,96489.0,0.00029674]
[1763287726924,0.60223643,96490.0,96489.0,0.00029674]
[1763287728404,0.60223643,96490.0,96489.0,0.04941338]
[1763287728405,0.39496107,96490.0,96489.0,0.04941338]
[1763287728791,0.39496107,96490.0,96489.0,0.00029674]
[1763287730051,0.39496107,96490.0,96489.0,0.04941338]
[1763287730886,0.60223643,96490.0,96489.0,0.04941338]
[1763287731086,0.60223643,96490.0,96489.0,0.00029674]
[1763287731491,0.61195112,96490.0,96489.0,0.00029674]
[1763287732259,0.63433848,96490.0,96489.0,0.00029674]
[1763287732663,0.61195112,96490.0,96489.0,0.00029674]
[1763287733085,0.40467576,96490.0,96489.0,0.00029674]
[1763287733261,0.39496107,96490.0,96489.0,0.04941338]
[1763287733521,0.0198728,96490.0,96489.0,0.04941338]
[1763287734068,0.00045175,96490.0,96489.0,0.04941338]
[1763287736314,0.00045175,96490.0,96489.0,0.00029674]
[1763287736653,0.00045175,96490.0,96489.0,0.04941338]
[1763287740664,0.02140175,96490.0,96489.0,0.04941338]
[1763287741079,0.00045175,96490.0,96489.0,0.04941338]
[1763287741293,0.00045175,96490.0,96489.0,0.25669089]
[1763287745754,0.00045175,96490.0,96489.0,0.40269089]
[1763287750496,0.00045175,96490.0,96489.0,0.40369089]
[1763287751711,0.00045175,96490.0,96489.0,0.25769089]
[1763287755563,0.00045175,96490.0,96489.0,0.58069089]
[1763287755955,1e-08,96490.0,96489.0,0.58069089]
[1763287756359,1e-08,96490.0,96489.0,0.57969089]
[1763287756564,1e-08,96490.0,96489.0,0.58069089]
[1763287756775,1e-08,96490.0,96489.0,0.61181382]
[1763287757473,1e-08,96490.0,96489.0,0.75681382]
[1763287758315,1e-08,96490.0,96489.0,0.75881382]
[1763287758544,0.01936585,96533.0,96532.0,0.20718518]
[1763287758753,0.04543941,96548.0,96545.0,0.20715684]
[1763287758932,0.01936627,96547.0,96546.0,0.04911664]
[1763287760453,0.02036627,96547.0,96546.0,0.04911664]
[1763287760608,0.01936627,96547.0,96546.0,0.04911664]
[1763287761257,0.02036627,96547.0,96546.0,0.04911664]
[1763287761734,0.01936723,96547.0,96546.0,0.04911664]
[1763287761946,0.02036723,96547.0,96546.0,0.04911664]
[1763287762177,0.03979723,96547.0,96546.0,0.04911664]
[1763287771284,0.02036723,96547.0,96546.0,0.04911664]
[1763287772840,0.04779915,96547.0,96546.0,0.04911664]
[1763287774071,0.04781559,96547.0,96546.0,0.04911664]
[1763287776032,0.20717779,96536.0,96535.0,0.04911664]
[1763287776278,0.22656152,96536.0,96535.0,0.04911664]
[1763287776514,0.24430032,96536.0,96535.0,0.04911664]
[1763287777983,0.03712373,96536.0,96535.0,0.04911664]
[1763287778608,0.24430032,96536.0,96535.0,0.04911664]
[1763287784644,0.03712373,96536.0,96535.0,0.04911664]
[1763287786665,0.04684096,96536.0,96535.0,0.04911664]
[1763287787492,0.20717874,96535.0,96520.0,0.09881783]
[1763287787658,0.01328,96525.0,96520.0,0.09881783]
[1763287787963,0.01328,96525.0,96524.0,0.04911664]
[1763287788167,0.0327164,96525.0,96524.0,0.04911664]
[1763287788365,0.0504564,96525.0,96524.0,0.04911664]
[1763287789255,0.0204364,96525.0,96523.0,0.01058]
[1763287789455,0.002,96525.0,96524.0,0.04911664]
[1763287789759,0.02143322,96525.0,96524.0,0.04911664]
[1763287790176,0.02043322,96525.0,96524.0,0.04911664]
[1763287791516,0.02143322,96525.0,96524.0,0.04911664]
[1763287791916,0.02043322,96525.0,96524.0,0.04911664]
[1763287792309,0.02143322,96525.0,96524.0,0.04911664]
[1763287793440,0.22863342,96525.0,96524.0,0.04911664]
[1763287793652,0.20720938,96521.0,96509.0,0.01058]
[1763287793919,0.24637342,96525.0,96520.0,0.04911664]
[1763287793920,0.23512449,96524.0,96520.0,0.04911664]
[1763287794099,0.22663394,96523.0,96514.0,0.20722194]
[1763287794246,0.20720644,96523.0,96522.0,0.04911664]
[1763287794459,0.01942596,96523.0,96522.0,0.04911664]
[1763287794636,0.03716596,96523.0,96522.0,0.04911664]
[1763287797314,0.03816596,96523.0,96522.0,0.04911664]
[1763287797735,0.03916596,96523.0,96522.0,0.04911664]
[1763287802891,0.03915489,96523.0,96522.0,0.04911664]
[1763287803414,0.03815489,96523.0,96522.0,0.04911664]
[1763287804003,0.03915489,96523.0,96522.0,0.04911664]
[1763287807339,0.207233,96510.0,96497.0,0.20725864]
[1763287807542,0.03046,96501.0,96491.0,0.00024282]
[1763287807799,0.45931055,96501.0,96500.0,0.04911664]
[1763287807992,0.23919933,96501.0,96500.0,0.04911664]
[1763287808139,0.25712933,96501.0,96500.0,0.04911664]
[1763287808546,0.30054807,96501.0,96500.0,0.00013492]
[1763287808997,0.28113047,96501.0,96500.0,0.00013492]
[1763287809221,0.3005405,96501.0,96500.0,0.00013492]
[1763287809428,0.3015405,96501.0,96500.0,0.00013492]
[1763287810240,0.09528877,96501.0,96500.0,0.00013492]
[1763287810451,0.09528877,96501.0,96500.0,0.04925156]
[1763287810790,0.09428877,96501.0,96500.0,0.04925156]
[1763287811210,0.09528877,96501.0,96500.0,0.04925156]
[1763287822955,0.41828877,96501.0,96500.0,0.04925156]
[1763287823154,0.41828877,96501.0,96500.0,0.00013492]
[1763287825752,0.42799265,96501.0,96500.0,0.00013492]
[1763287826048,0.45035242,96501.0,96500.0,0.00013492]
[1763287826516,0.44935242,96501.0,96500.0,0.00013492]
[1763287826951,0.44835242,96501.0,96500.0,0.00013492]
[1763287827369,0.44935242,96501.0,96500.0,0.00013492]
[1763287827727,0.45035242,96501.0,96500.0,0.00013492]
[1763287828124,0.5540218,96501.0,96500.0,0.00013492]
[1763287828678,0.45035242,96501.0,96500.0,0.00013492]
[1763287834661,0.45035242,96501.0,96500.0,0.04925156]
[1763287834868,0.40693368,96501.0,96500.0,0.04925156]
[1763287835073,0.10499265,96501.0,96500.0,0.04925156]
[1763287835632,0.42799265,96501.0,96500.0,0.04925156]
[1763287836960,0.37487003,96501.0,96500.0,0.04925156]
[1763287837164,0.38457993,96501.0,96500.0,0.04925156]
[1763287839566,0.40878164,96501.0,96500.0,0.04925156]
[1763287844433,0.39907174,96501.0,96500.0,0.04925156]
[1763287845808,0.60632347,96501.0,96500.0,0.04925156]
[1763287848251,0.39907174,96501.0,96500.0,0.04925156]
[1763287849136,0.60632347,96501.0,96500.0,0.04925156]
[1763287850331,0.39907174,96501.0,96500.0,0.04925156]
[1763287850555,0.60632347,96501.0,96500.0,0.04925156]
[1763287851477,0.39907174,96501.0,96500.0,0.04925156]
[1763287851935,0.35603174,96501.0,96500.0,0.04925156]
[1763287852926,0.35503174,96501.0,96500.0,0.04925156]
[1763287853443,0.35603174,96501.0,96500.0,0.04925156]
[1763287853959,0.37236174,96501.0,96500.0,0.04925156]
[1763287857914,0.57961347,96501.0,96500.0,0.04925156]
[1763287865647,0.35603174,96501.0,96500.0,0.00013492]
[1763287865809,0.35603174,96501.0,96500.0,0.04925156]
[1763287866009,0.35603174,96501.0,96500.0,0.25650544]
[1763287866206,0.35603174,96501.0,96500.0,0.2073888]
[1763287866555,0.35603174,96501.0,96500.0,0.25650544]
[1763287867159,0.03303174,96501.0,96500.0,0.25650544]
[1763287869374,0.03303174,96501.0,96500.0,0.04925156]
[1763287870361,0.03303174,96501.0,96500.0,0.25650544]
[1763287870949,0.02141003,96501.0,96500.0,0.25650544]
[1763287872035,0.002,96501.0,96500.0,0.25650544]
[1763287872692,0.001,96501.0,96500.0,0.25650544]
[1763287872893,0.04341874,96520.0,96519.0,0.04911664]
[1763287873101,0.0194364,96520.0,96519.0,0.04911664]
[1763287874176,0.0204364,96520.0,96519.0,0.04911664]
[1763287874586,0.0214364,96520.0,96519.0,0.04911664]
[1763287875255,0.002,96520.0,96519.0,0.04911664]
[1763287875429,0.001,96520.0,96519.0,0.04911664]
[1763287875627,0.02140759,96520.0,96519.0,0.04911664]
[1763287876038,0.02040759,96520.0,96519.0,0.04911664]
[1763287876336,0.001,96520.0,96519.0,0.04911664]
[1763287876560,0.002,96520.0,96519.0,0.04911664]
[1763287879377,0.33456,96539.0,96529.0,0.20719162]
[1763287879582,0.01938245,96538.0,96537.0,0.25629109]
[1763287879781,0.01938245,96538.0,96537.0,0.04911664]
[1763287880389,0.34238245,96538.0,96537.0,0.04911664]
[1763287880587,0.34243395,96538.0,96537.0,0.04911664]
[1763287881450,0.34343395,96538.0,96537.0,0.04911664]
[1763287882108,0.55060625,96538.0,96537.0,0.04911664]
[1763287882307,0.34443395,96538.0,96537.0,0.04911664]
[1763287884023,0.55160625,96538.0,96537.0,0.04911664]
[1763287884229,0.56724625,96538.0,96537.0,0.04911664]
[1763287885465,0.36007395,96538.0,96537.0,0.04911664]
[1763287885814,0.56724625,96538.0,96537.0,0.04911664]
[1763287887365,0.56722731,96538.0,96537.0,0.04911664]
[1763287893857,0.36005501,96538.0,96537.0,0.04911664]
[1763287894056,0.34441501,96538.0,96537.0,0.04911664]
[1763287895169,0.34341501,96538.0,96537.0,0.04911664]
[1763287895374,0.01941501,96538.0,96537.0,0.04911664]
[1763287895751,0.02041501,96538.0,96537.0,0.04911664]
[1763287896368,0.02041501,96538.0,96537.0,0.07372664]
[1763287896740,0.02141501,96538.0,96537.0,0.07372664]
[1763287896935,0.01941501,96538.0,96537.0,0.04911664]
[1763287897136,0.02041501,96538.0,96537.0,0.04911664]
[1763287898206,0.02041501,96538.0,96537.0,0.06983408]
[1763287898871,0.323,96536.0,96518.0,0.00847]
[1763287899077,0.01161,96527.0,96526.0,0.04911664]
[1763287899405,0.03097351,96527.0,96526.0,0.04911664]
[1763287899773,0.01936351,96527.0,96526.0,0.04911664]
[1763287900185,0.01936351,96527.0,96526.0,0.2770345]
[1763287900385,0.01936351,96527.0,96526.0,0.2563147]
[1763287901211,0.02036351,96527.0,96526.0,0.2563147]
[1763287901627,0.01936351,96527.0,96526.0,0.2563147]
[1763287904079,0.01936351,96527.0,96526.0,0.2573147]
[1763287906291,0.01936351,96527.0,96526.0,0.2563147]
[1763287906487,0.00968175,96527.0,96526.0,0.2563147]
[1763287906690,5.15e-05,96538.0,96537.0,0.35510892]
[1763287906943,5.15e-05,96538.0,96537.0,0.37153892]
[1763287907180,5.15e-05,96538.0,96537.0,0.35510892]
[1763287908485,5.15e-05,96538.0,96537.0,0.35610892]
[1763287909228,5.15e-05,96538.0,96537.0,0.67910892]
[1763287909751,5.15e-05,96538.0,96537.0,0.73809658]
[1763287911557,0.03111066,96575.0,96574.0,0.20709507]
[1763287911790,5.15e-05,96575.0,96574.0,0.27264171]
[1763287912858,0.0010515,96575.0,96574.0,0.27264171]
[1763287913058,0.0020515,96575.0,96574.0,0.25621171]
[1763287913264,0.0010515,96575.0,96574.0,0.25621171]
[1763287913686,5.15e-05,96575.0,96574.0,0.25621171]
[1763287917068,5.15e-05,96575.0,96574.0,0.04911664]
[1763287917489,5.15e-05,96575.0,96574.0,0.25621171]
[1763287918098,5.15e-05,96575.0,96574.0,0.04911664]
[1763287918746,0.0193702,96575.0,96574.0,0.14793447]
[1763287921937,0.0193702,96575.0,96574.0,0.35502954]
[1763287922134,5.15e-05,96575.0,96574.0,0.35502954]
[1763287922358,0.01936682,96575.0,96574.0,0.35502954]
[1763287923561,0.01936682,96575.0,96574.0,0.14793447]
[1763287928606,0.01936682,96575.0,96574.0,0.35502954]
[1763287929063,0.01936682,96575.0,96574.0,0.14793447]
[1763287931286,0.01936682,96575.0,96574.0,0.35502954]
[1763287931623,0.01936682,96575.0,96574.0,0.14793447]
[1763287931860,0.01936682,96575.0,96574.0,0.17257447]
[1763287932062,0.01936682,96575.0,96574.0,0.14793447]
[1763287934220,0.01936682,96575.0,96574.0,0.35502954]
[1763287936275,0.01936682,96575.0,96574.0,0.14793447]
[1763287936440,0.01936682,96575.0,96574.0,0.35502954]
[1763287938317,0.01936682,96575.0,96574.0,0.14793447]
[1763287939733,0.01936682,96575.0,96574.0,0.16864397]
[1763287941743,0.01936682,96575.0,96574.0,0.16964397]
[1763287944203,0.00121043,96575.0,96574.0,0.16964397]
[1763287944370,0.1002,96600.0,96599.0,0.14793447]
[1763287944591,0.11036427,96600.0,96599.0,0.04911664]
[1763287946266,0.10065169,96600.0,96599.0,0.07340664]
[1763287946417,0.10165169,96600.0,96599.0,0.07340664]
[1763287946599,0.10165169,96600.0,96599.0,0.04911664]
[1763287946811,0.10165169,96600.0,96599.0,0.25615812]
[1763287947417,0.10165169,96600.0,96599.0,0.04911664]
[1763287947893,0.10165169,96600.0,96599.0,0.25615812]
[1763287948868,0.10165169,96600.0,96599.0,0.04911664]
[1763287953314,0.30869102,96600.0,96599.0,0.04911664]
[1763287956541,0.32807963,96600.0,96599.0,0.04911664]
[1763287957543,0.34323963,96600.0,96599.0,0.04911664]
[1763287957750,0.34323963,96600.0,96589.0,0.09881783]
[1763287957751,0.20706077,96590.0,96589.0,0.14793447]
[1763287957952,0.01938861,96590.0,96589.0,0.14793447]
[1763287958257,0.01939122,96590.0,96589.0,0.14793447]
[1763287959232,0.01939246,96590.0,96589.0,0.09881783]
[1763287959437,0.01939246,96590.0,96589.0,0.14793447]
[1763287959953,0.01939246,96590.0,96574.0,0.30591216]
[1763287959954,0.20708388,96580.0,96574.0,0.09881783]
[1763287960154,0.01939246,96590.0,96575.0,0.02070929]
[1763287960155,0.23935444,96584.0,96575.0,0.02070929]
[1763287960366,0.23935444,96584.0,96583.0,0.04911664]
[1763287960540,0.20707202,96585.0,96583.0,0.08826664]
[1763287960781,0.20707202,96585.0,96584.0,0.04911664]
[1763287960985,0.20706744,96587.0,96586.0,0.04911664]
[1763287962218,0.20806744,96587.0,96586.0,0.04911664]
[1763287962846,0.20806744,96587.0,96586.0,0.07291664]
[1763287963150,0.2090672,96587.0,96586.0,0.04911664]
[1763287973023,0.2090672,96587.0,96586.0,0.07291664]
[1763287974166,0.002,96587.0,96586.0,0.07291664]
[1763287976550,0.002,96587.0,96586.0,0.04911664]
[1763287977212,0.002,96587.0,96586.0,0.07291664]
[1763287978437,0.002,96587.0,96586.0,0.04911664]
[1763287981950,0.002,96587.0,96586.0,0.27689291]
[1763287982262,0.002,96587.0,96586.0,0.25618598]
[1763287982810,0.26017665,96600.0,96592.0,0.20705565]
[1763287983015,0.26017665,96600.0,96599.0,0.04911664]
[1763287983222,0.10065169,96600.0,96599.0,0.04911664]
[1763287983822,0.10165169,96600.0,96599.0,0.04911664]
[1763287985333,0.30969102,96600.0,96599.0,0.04911664]
[1763287986090,0.32911494,96600.0,96599.0,0.04911664]
[1763287987360,0.20707149,96585.0,96569.0,0.0343]
[1763287987565,0.20707041,96586.0,96575.0,0.03200929]
[1763287987793,0.20707041,96586.0,96585.0,0.04911664]
[1763287992124,0.20807041,96586.0,96585.0,0.04911664]
[1763288005138,0.001,96586.0,96585.0,0.04911664]
[1763288006559,0.20705658,96592.0,96591.0,0.04911664]
[1763288006760,0.15952496,96595.0,96591.0,0.04911664]
[1763288007086,0.10065169,96600.0,96599.0,0.04911664]
[1763288009743,0.10165169,96600.0,96599.0,0.04911664]
[1763288014292,0.12107511,96600.0,96599.0,0.04911664]
[1763288014759,0.10165169,96600.0,96599.0,0.04911664]
[1763288014933,0.30869102,96600.0,96599.0,0.04911664]
[1763288015585,0.10165169,96600.0,96599.0,0.04911664]
[1763288017246,0.10165169,96600.0,96599.0,0.25615812]
[1763288018104,0.10165169,96600.0,96599.0,0.27947812]
[1763288019067,0.10165169,96600.0,96599.0,0.25615812]
[1763288021972,0.10165169,96600.0,96599.0,0.04911664]
[1763288023182,0.32392102,96600.0,96599.0,0.04911664]
[1763288024857,0.32492102,96600.0,96599.0,0.04911664]
[1763288030966,0.30969102,96600.0,96599.0,0.04911664]
[1763288032249,0.36641874,96599.0,96595.0,0.04970816]
[1763288032463,0.36641874,96599.0,96569.0,0.0113]
[1763288032464,0.20708569,96579.0,96569.0,0.0113]
[1763288032681,0.20708569,96579.0,96578.0,0.09881783]
[1763288033087,0.20708569,96579.0,96578.0,0.14852599]
[1763288034603,0.20708432,96580.0,96578.0,0.14852599]
[1763288034788,0.20708432,96580.0,96579.0,0.04970816]
[1763288035987,0.001,96580.0,96579.0,0.04970816]
[1763288036544,0.001,96580.0,96579.0,0.16547243]
[1763288036729,0.001,96580.0,96579.0,0.18879243]
[1763288037132,0.001,96580.0,96579.0,0.20405243]
[1763288037133,0.00096,96580.0,96579.0,0.20405243]
[1763288037454,0.20707455,96584.0,96580.0,0.06100816]
[1763288037595,0.20707455,96584.0,96583.0,0.04970816]
[1763288037805,0.20706555,96588.0,96587.0,0.04970816]
[1763288038044,0.20706505,96588.0,96587.0,0.04970816]
[1763288039330,0.03110386,96590.0,96587.0,0.04970816]
[1763288039529,0.2070614,96590.0,96589.0,0.04970816]
[1763288039705,0.20705896,96591.0,96590.0,0.04970816]
[1763288040684,0.03110282,96592.0,96591.0,0.04970816]
[1763288041162,0.20705259,96594.0,96591.0,0.04970816]
[1763288041354,0.20705259,96594.0,96593.0,0.04970816]
[1763288042213,0.03110053,96599.0,96594.0,0.00565]
[1763288042484,0.10065169,96600.0,96599.0,0.04970816]
[1763288044389,0.10165169,96600.0,96599.0,0.04970816]
[1763288045212,0.10165169,96600.0,96599.0,0.25674964]
[1763288047426,0.10165169,96600.0,96599.0,0.04970816]
[1763288048210,0.10165169,96600.0,96599.0,0.07281816]
[1763288048436,0.10165169,96600.0,96599.0,0.25674964]
[1763288049094,0.05337348,96600.0,96599.0,0.27214964]
[1763288049279,0.0002,96620.0,96619.0,0.04970816]
[1763288049479,0.00033545,96620.0,96619.0,0.06510816]
[1763288050885,0.00133545,96620.0,96619.0,0.06510816]
[1763288051636,0.00233545,96620.0,96619.0,0.06510816]
[1763288053818,0.20933193,96620.0,96619.0,0.06510816]
[1763288054056,0.00233545,96620.0,96619.0,0.06510816]
[1763288054438,0.20933193,96620.0,96619.0,0.06510816]
[1763288056080,0.20933193,96620.0,96619.0,0.07326816]
[1763288058221,0.20933193,96620.0,96619.0,0.05786816]
[1763288058805,0.22482193,96620.0,96619.0,0.04970816]
[1763288061073,0.25591566,96620.0,96619.0,0.04970816]
[1763288063622,0.20701803,96610.0,96609.0,0.05]
[1763288068397,0.20701566,96612.0,96599.0,0.00816]
[1763288068605,0.20701566,96612.0,96611.0,0.05]
[1763288069511,0.20801566,96612.0,96611.0,0.05]
[1763288069986,0.001,96612.0,96611.0,0.05]
[1763288070157,0.03109373,96618.0,96601.0,0.20703608]
[1763288070158,0.20701332,96613.0,96606.0,0.20702513]
[1763288070357,0.20701332,96613.0,96612.0,0.05]
[1763288071534,0.20801332,96613.0,96612.0,0.05]
[1763288071755,0.20701332,96613.0,96612.0,0.05]
[1763288071934,0.20801332,96613.0,96612.0,0.05]
[1763288072402,0.20901332,96613.0,96612.0,0.05]
[1763288082723,0.002,96613.0,96612.0,0.05]
[1763288083826,0.002,96613.0,96612.0,0.07070136]
[1763288088529,0.002,96613.0,96612.0,0.05]
[1763288088735,0.002,96613.0,96612.0,0.07070136]
[1763288090417,0.002,96613.0,96612.0,0.05]
[1763288090615,0.002,96613.0,96612.0,0.25701362]
[1763288091758,0.002,96613.0,96612.0,0.05]
[1763288096234,0.03078,96613.0,96612.0,0.05]
[1763288097817,0.01414,96613.0,96612.0,0.05]
[1763288101011,0.03078,96613.0,96612.0,0.05]
[1763288106779,0.37321088,96613.0,96612.0,0.05]
[1763288106978,0.41402433,96613.0,96612.0,0.05]
[1763288107336,0.40430829,96613.0,96612.0,0.05]
[1763288112316,0.44772703,96613.0,96612.0,0.05]
[1763288112529,0.20704576,96597.0,96596.0,0.05]
[1763288112942,0.22205576,96597.0,96596.0,0.05]
[1763288114561,0.323,96595.0,96594.0,0.05]
[1763288114849,0.34240804,96595.0,96594.0,0.05]
[1763288115050,0.56498023,96595.0,96594.0,0.05]
[1763288116014,0.56598023,96595.0,96594.0,0.05]
[1763288116629,0.56698023,96595.0,96594.0,0.05]
[1763288116805,0.71406835,96595.0,96594.0,0.05]
[1763288117145,0.20709899,96573.0,96572.0,0.00816]
[1763288117354,0.20709899,96573.0,96572.0,0.05816]
[1763288117797,0.20708516,96579.0,96578.0,0.05]
[1763288118389,0.20708516,96579.0,96578.0,0.05045169]
[1763288119880,0.22260516,96579.0,96578.0,0.05045169]
[1763288120888,0.20708516,96579.0,96578.0,0.05045169]
[1763288123543,0.22260516,96579.0,96578.0,0.05045169]
[1763288134575,0.56497926,96579.0,96578.0,0.00045169]
[1763288134759,0.6395075,96579.0,96578.0,0.00045169]
[1763288135370,0.6405075,96579.0,96578.0,0.00045169]
[1763288136146,0.65119667,96579.0,96578.0,0.00045169]
[1763288137173,0.67252416,96579.0,96578.0,0.00045169]
[1763288137296,0.77619354,96579.0,96578.0,0.00045169]
[1763288137514,0.77719354,96579.0,96578.0,0.00045169]
[1763288137920,0.67352416,96579.0,96578.0,0.00045169]
[1763288138532,0.65119667,96579.0,96578.0,0.05045169]
[1763288138734,0.65119611,96579.0,96578.0,0.05045169]
[1763288141581,0.67352913,96579.0,96578.0,0.00045169]
[1763288141789,0.77719851,96579.0,96578.0,1e-08]
[1763288142015,0.67352913,96579.0,96578.0,1e-08]
[1763288143664,0.67152913,96579.0,96578.0,1e-08]
[1763288143895,0.67252913,96579.0,96578.0,1e-08]
[1763288144091,0.67352913,96579.0,96578.0,1e-08]
[1763288152814,0.67252913,96579.0,96578.0,1e-08]
[1763288152991,0.77619851,96579.0,96578.0,1e-08]
[1763288153412,0.77719851,96579.0,96578.0,1e-08]
[1763288156463,0.67352913,96579.0,96578.0,1e-08]
[1763288158083,0.20716623,96541.0,96540.0,0.169728]
[1763288158288,0.22655638,96541.0,96540.0,0.0500515]
[1763288159715,0.24248638,96541.0,96540.0,0.0500515]
[1763288160466,0.22655638,96541.0,96540.0,0.0500515]
[1763288160656,0.01939015,96541.0,96540.0,0.0500515]
[1763288160870,0.01939015,96542.0,96541.0,0.05]
[1763288161053,0.01939015,96542.0,96540.0,5.15e-05]
[1763288161054,0.20716586,96541.0,96540.0,5.15e-05]
[1763288161257,0.0193962,96541.0,96540.0,0.0500515]
[1763288161458,0.20716335,96543.0,96540.0,5.15e-05]
[1763288161459,0.22656171,96542.0,96540.0,5.15e-05]
[1763288161661,0.01939976,96541.0,96540.0,0.0500515]
[1763288162896,0.20716372,96542.0,96541.0,0.05]
[1763288163063,0.01940427,96542.0,96541.0,0.05]
[1763288163265,0.20714011,96553.0,96542.0,0.00816]
[1763288163466,0.22655306,96552.0,96551.0,0.05]
[1763288163867,0.04012547,96552.0,96551.0,0.05]
[1763288166094,0.24726773,96552.0,96551.0,0.05]
[1763288166432,0.01940889,96552.0,96551.0,0.25714441]
[1763288166632,0.53011662,96564.0,96545.0,0.20715631]
[1763288166856,0.53011662,96564.0,96563.0,0.05816]
[1763288167059,0.54953652,96564.0,96563.0,0.05816]
[1763288167239,0.58064896,96564.0,96563.0,0.05816]
[1763288168334,0.59196896,96564.0,96563.0,0.05816]
[1763288168549,0.60739896,96564.0,96563.0,0.05]
[1763288169712,0.59196896,96564.0,96563.0,0.05]
[1763288170534,0.59296896,96564.0,96563.0,0.05]
[1763288171823,0.60839896,96564.0,96563.0,0.05]
[1763288172423,0.60939896,96564.0,96563.0,0.05]
[1763288172627,0.28639896,96564.0,96563.0,0.05]
[1763288173753,0.28639896,96564.0,96540.0,5.15e-05]
[1763288173754,0.20715942,96544.0,96543.0,0.00816]
[1763288174080,0.20715942,96544.0,96543.0,0.05816]
[1763288175397,0.20715881,96545.0,96543.0,0.05816]
[1763288175566,0.20715881,96545.0,96544.0,0.05]
[1763288177571,0.22283881,96545.0,96544.0,0.05]
[1763288177976,0.20716586,96541.0,96540.0,0.0500515]
[1763288178175,0.23432586,96541.0,96540.0,0.0500515]
[1763288178511,0.25375434,96541.0,96540.0,0.0500515]
[1763288178724,0.28487465,96541.0,96540.0,0.0500515]
[1763288181632,0.28587465,96541.0,96540.0,0.0500515]
[1763288182695,0.28585613,96541.0,96540.0,0.0500515]
[1763288186387,0.26644617,96541.0,96540.0,0.0500515]
[1763288187864,0.26644617,96541.0,96540.0,5.15e-05]
[1763288188064,0.26644617,96541.0,96540.0,0.0500515]
[1763288191735,0.28583863,96541.0,96540.0,0.0500515]
[1763288193841,0.28583863,96541.0,96540.0,5.15e-05]
[1763288196065,0.65225737,96541.0,96540.0,5.15e-05]
[1763288196875,0.68428731,96541.0,96540.0,5.15e-05]
[1763288197101,0.68328731,96541.0,96540.0,5.15e-05]
[1763288197645,0.68528731,96541.0,96540.0,5.15e-05]
[1763288197996,0.68428731,96541.0,96540.0,5.15e-05]
[1763288198196,0.78895669,96541.0,96540.0,5.15e-05]
[1763288198597,0.78795669,96541.0,96540.0,5.15e-05]
[1763288198812,0.78895669,96541.0,96540.0,5.15e-05]
[1763288199441,0.78795669,96541.0,96540.0,5.15e-05]
[1763288199670,0.78695669,96541.0,96540.0,5.15e-05]
[1763288199841,0.78895669,96541.0,96540.0,5.15e-05]
[1763288200045,0.79095669,96541.0,96540.0,5.15e-05]
[1763288201023,0.68728731,96541.0,96540.0,5.15e-05]
[1763288204755,0.68528731,96541.0,96540.0,5.15e-05]
[1763288205156,0.68628731,96541.0,96540.0,5.15e-05]
[1763288205694,0.68428731,96541.0,96540.0,5.15e-05]
[1763288206041,0.68528731,96541.0,96540.0,5.15e-05]
[1763288208253,0.78895669,96541.0,96540.0,5.15e-05]
[1763288212616,0.78795669,96541.0,96540.0,5.15e-05]
[1763288212821,0.78695669,96541.0,96540.0,5.15e-05]
[1763288213278,0.78895669,96541.0,96540.0,5.15e-05]
[1763288213979,0.79095669,96541.0,96540.0,5.15e-05]
[1763288214964,0.64386857,96541.0,96540.0,5.15e-05]
[1763288215200,0.32086857,96541.0,96540.0,0.0500515]
[1763288215406,0.36428731,96541.0,96540.0,0.0500515]
[1763288215627,0.68728731,96541.0,96540.0,0.0500515]
[1763288215834,0.68328731,96541.0,96540.0,0.0500515]
[1763288216280,0.74750884,96541.0,96540.0,5.15e-05]
[1763288217309,0.74850884,96541.0,96540.0,5.15e-05]
[1763288217916,0.68528731,96541.0,96540.0,5.15e-05]
[1763288219567,0.68428731,96541.0,96540.0,5.15e-05]
[1763288219976,0.68628731,96541.0,96540.0,5.15e-05]
[1763288220402,0.68528731,96541.0,96540.0,5.15e-05]
[1763288221030,0.68628731,96541.0,96540.0,5.15e-05]
[1763288221461,0.68528731,96541.0,96540.0,5.15e-05]
[1763288221665,0.68328731,96541.0,96540.0,5.15e-05]
[1763288221871,0.68428731,96541.0,96540.0,5.15e-05]
[1763288222292,0.68328731,96541.0,96540.0,5.15e-05]
[1763288222497,0.68528731,96541.0,96540.0,5.15e-05]
[1763288222720,0.68428731,96541.0,96540.0,5.15e-05]
[1763288223141,0.68528731,96541.0,96540.0,5.15e-05]
[1763288223600,0.68532708,96541.0,96540.0,5.15e-05]
[1763288224276,0.68532708,96541.0,96540.0,0.0500515]
[1763288225101,0.68432708,96541.0,96540.0,0.0500515]
[1763288225324,0.68332708,96541.0,96540.0,5.15e-05]
[1763288225523,0.68432708,96541.0,96540.0,5.15e-05]
[1763288225678,0.68532708,96541.0,96540.0,5.15e-05]
[1763288227970,0.22855832,96541.0,96540.0,0.0500515]
[1763288228176,0.01717,96541.0,96540.0,0.0500515]
[1763288228391,0.22433586,96541.0,96540.0,0.0500515]
[1763288229039,0.22333586,96541.0,96540.0,0.0500515]
[1763288229441,0.01617,96541.0,96540.0,0.0500515]
[1763288229667,0.001,96541.0,96540.0,0.0500515]
[1763288229896,0.01236,96542.0,96541.0,0.05]
[1763288230315,0.01132,96550.0,96540.0,0.20721943]
[1763288230537,0.01132,96550.0,96549.0,0.05]
[1763288232174,0.01232,96550.0,96549.0,0.05]
[1763288232355,0.02749,96550.0,96549.0,0.05]
[1763288233198,0.02849,96550.0,96549.0,0.05]
[1763288233858,0.002,96550.0,96549.0,0.05]
[1763288234802,0.20715212,96548.0,96547.0,0.05]
[1763288235004,0.20914847,96550.0,96549.0,0.05]
[1763288236301,0.20814847,96550.0,96549.0,0.05]
[1763288237410,0.20914847,96550.0,96549.0,0.05]
[1763288239105,0.002,96550.0,96549.0,0.05]
[1763288242520,0.001,96550.0,96549.0,0.05]
[1763288243358,0.03111247,96569.0,96558.0,0.00816]
[1763288243572,0.20712724,96559.0,96558.0,0.05816]
[1763288244440,0.20712338,96561.0,96560.0,0.05]
[1763288244642,0.20711498,96565.0,96564.0,0.05]
[1763288245285,0.03111247,96569.0,96565.0,0.00816]
[1763288245515,0.01225,96592.0,96565.0,0.00816]
[1763288245516,0.02441,96600.0,96570.0,0.01035518]
[1763288245763,0.23815094,96597.0,96596.0,0.05]
[1763288245980,0.01225,96598.0,96596.0,0.05]
[1763288246223,0.01225,96598.0,96597.0,0.05]
[1763288246646,0.01270169,96598.0,96597.0,0.05]
[1763288247259,0.00045169,96598.0,96597.0,0.05]
[1763288248165,0.02019998,96640.0,96597.0,0.05]
[1763288248374,0.05205085,96662.0,96659.0,0.25691296]
[1763288248538,0.01225,96699.0,96668.0,0.323]
[1763288248731,0.97006044,96678.0,96677.0,0.05796]
[1763288248938,0.97006044,96678.0,96677.0,0.05]
[1763288249090,0.97006044,96678.0,96660.0,0.20691082]